bitfinex-derivatives/quotes_SOLF0:USTF0_20240823
["timestamp","ask_amount","ask_price","bid_price","bid_amount"]
[1724425251429,1.2874,143.43,143.33,40.24068102]
[1724425251727,1.2874,143.43,143.33,43.60249728]
[1724425251931,1.2874,143.43,143.33,3.41249728]
[1724425252224,3.4858,143.41,143.3,40.19]
[1724425252421,3.4858,143.41,143.36,3.4868]
[1724425252622,3.4858,143.41,143.36,6.88605027]
[1724425252827,0.05025772,143.4,143.37,0.0485674]
[1724425254519,0.05025772,143.4,143.37,37.057458]
[1724425254729,0.05025772,143.4,143.39,36.9562]
[1724425254919,0.05025772,143.4,143.39,40.45187389]
[1724425255720,0.05025772,143.4,143.37,0.0485674]
[1724425256123,0.05025772,143.4,143.37,3.5316945]
[1724425256316,0.05025772,143.4,143.37,0.0485674]
[1724425256725,33.52025772,143.4,143.37,0.0485674]
[1724425257023,33.47,143.38,143.24,3.42004465]
[1724425257226,33.47,143.36,143.24,3.42004465]
[1724425257529,3.4877,143.33,143.26,0.981785]
[1724425257733,33.47,143.33,143.26,0.981785]
[1724425258033,0.0509933,143.31,143.26,3.4892]
[1724425258224,0.0509933,143.31,143.23,33.47]
[1724425258429,0.0509933,143.31,143.21,33.47]
[1724425258623,33.47,143.32,143.23,0.98218881]
[1724425258828,0.04705067,143.28,143.24,3.4898]
[1724425259023,0.04705067,143.28,143.23,3.44215599]
[1724425259329,0.04705067,143.28,143.23,33.47]
[1724425259524,0.04705067,143.28,143.23,36.92470715]
[1724425260328,0.04705067,143.28,143.25,33.47]
[1724425260528,40.2,143.36,143.24,40.2]
[1724425260726,27.88,143.4,143.24,40.2]
[1724425261030,27.88,143.4,143.19,0.5351]
[1724425261031,2.734,143.39,143.26,40.2]
[1724425261326,2.734,143.39,143.29,40.2]
[1724425261723,0.05320803,143.35,143.33,0.04891922]
[1724425262327,3.4874,143.34,143.27,4.47095167]
[1724425262525,0.05320803,143.35,143.27,3.4747159]
[1724425262723,40.2,143.36,143.24,40.2]
[1724425263028,3.4877,143.33,143.24,40.2]
[1724425263234,40.2,143.36,143.24,40.2]
[1724425263430,3.4877,143.33,143.27,3.489]
[1724425263631,0.05059775,143.31,143.24,40.2]
[1724425263933,0.05059775,143.31,143.27,3.4891]
[1724425264332,0.05059775,143.31,143.22,40.2]
[1724425264639,3.4882,143.31,143.26,3.4893]
[1724425265130,0.0470494,143.28,143.26,3.4893]
[1724425265532,0.0470494,143.28,143.22,40.2]
[1724425265735,0.0470494,143.28,143.22,3.56178868]
[1724425265933,0.0470494,143.28,143.2,40.2]
[1724425266530,0.0470494,143.28,143.22,40.2]
[1724425267033,0.0470494,143.28,143.27,40.2]
[1724425267636,2.6316,143.37,143.28,3.41440936]
[1724425267837,3.9644,143.37,143.27,40.2]
[1724425268430,3.4876,143.34,143.29,3.4885]
[1724425268626,3.9644,143.37,143.27,40.2]
[1724425268829,0.04845355,143.33,143.32,3.4877]
[1724425269135,3.4864,143.39,143.31,43.74798635]
[1724425269349,0.04582878,143.34,143.31,43.79852763]
[1724425269635,2.8148,143.42,143.31,43.74798635]
[1724425269833,2.8148,143.42,143.34,40.2]
[1724425270538,1.3328,143.46,143.36,40.2]
[1724425270833,0.04444411,143.39,143.34,40.2]
[1724425271031,3.4852,143.44,143.38,3.4862]
[1724425271232,2.8148,143.45,143.34,40.2]
[1724425271531,0.04843606,143.38,143.35,0.05183406]
[1724425271732,2.8148,143.45,143.37,3.4867]
[1724425272129,2.8148,143.45,143.4,0.04570973]
[1724425272130,3.53134219,143.42,143.4,0.04570973]
[1724425272935,3.4857,143.41,143.4,0.04570973]
[1724425273126,0.04564219,143.42,143.32,40.2]
[1724425273436,40.2,143.42,143.3,40.2]
[1724425273638,40.2,143.42,143.34,3.4873]
[1724425274033,40.2,143.42,143.3,40.2]
[1724425274332,40.2,143.42,143.31,0.9814378]
[1724425274533,0.0504251,143.37,143.31,0.9814378]
[1724425274842,0.0504251,143.37,143.33,3.4875]
[1724425276833,0.0504251,143.37,143.3,40.2]
[1724425277134,0.0504251,143.37,143.34,40.2]
[1724425277331,2.8148,143.45,143.36,40.2]
[1724425277332,6.2996,143.45,143.36,40.2]
[1724425277538,2.8148,143.45,143.39,40.2]
[1724425277728,1.4101,143.45,143.39,40.2]
[1724425277934,1.3832,143.5,143.41,40.2]
[1724425278336,1.3832,143.5,143.42,3.42551133]
[1724425278530,0.05025695,143.47,143.44,0.04403736]
[1724425281742,0.05025695,143.47,143.44,3.52893736]
[1724425281943,0.05025695,143.47,143.44,0.04403736]
[1724425282341,0.05025695,143.47,143.45,3.4848]
[1724425283947,0.05025695,143.47,143.44,3.52903736]
[1724425284450,3.53455695,143.47,143.44,0.04403736]
[1724425284641,0.05025695,143.47,143.44,0.04403736]
[1724425285643,33.48025695,143.47,143.44,0.04403736]
[1724425286142,3.4848,143.45,143.44,0.04403736]
[1724425289143,3.4861,143.4,143.33,0.5242]
[1724425289344,40.13,143.44,143.36,3.4869]
[1724425289543,3.4859,143.41,143.36,3.48201892]
[1724425289746,45.02556695,143.46,143.34,40.13]
[1724425290047,0.05250549,143.41,143.36,40.13]
[1724425290245,0.05250549,143.41,143.36,43.59312695]
[1724425291346,0.05250549,143.41,143.39,3.4861]
[1724425291544,0.05250549,143.41,143.36,43.59312695]
[1724425291744,0.05250549,143.41,143.36,3.46312695]
[1724425291946,0.05250549,143.41,143.37,3.4865]
[1724425292152,0.05250549,143.41,143.38,3.47741435]
[1724425292448,0.05250549,143.41,143.34,40.13]
[1724425292655,3.53840549,143.41,143.35,0.98110145]
[1724425292848,0.05250549,143.41,143.35,0.98110145]
[1724425294147,0.05250549,143.41,143.37,3.4866]
[1724425294344,0.05250549,143.41,143.34,43.65863991]
[1724425294550,0.05250549,143.41,143.34,3.52863991]
[1724425294750,3.4864,143.39,143.35,3.4872]
[1724425295048,0.05252031,143.38,143.35,6.96203901]
[1724425295250,0.05252031,143.38,143.36,3.4869]
[1724425295445,0.05252031,143.38,143.34,40.13]
[1724425296050,0.05252031,143.38,143.36,40.13]
[1724425296246,0.05346695,143.38,143.37,3.4867]
[1724425296443,0.05346695,143.38,143.36,3.4337249]
[1724425296653,0.05346695,143.38,143.34,40.13]
[1724425296847,0.05346695,143.38,143.37,3.4867]
[1724425297048,0.05346695,143.38,143.37,6.9191613]
[1724425297956,3.4851,143.44,143.4,3.4859]
[1724425298458,3.4851,143.44,143.4,7.00094946]
[1724425298646,3.4851,143.44,143.4,3.4859]
[1724425298854,3.4853,143.43,143.39,3.4861]
[1724425299051,0.04880929,143.42,143.4,0.04946325]
[1724425300861,0.04880929,143.42,143.41,40.13]
[1724425301349,0.04880929,143.42,143.41,43.6157]
[1724425301554,0.04880929,143.42,143.4,0.04946325]
[1724425302151,0.04880929,143.42,143.41,3.4857]
[1724425302351,0.04880929,143.42,143.4,0.04946325]
[1724425304051,0.04880929,143.42,143.4,3.53536325]
[1724425304852,0.04880929,143.42,143.4,0.04946325]
[1724425305561,0.04880929,143.42,143.41,3.4857]
[1724425305755,0.04880929,143.42,143.41,43.6157]
[1724425305953,3.4839,143.49,143.45,3.4847]
[1724425306154,2.5977,143.51,143.43,40.13]
[1724425306659,3.4842,143.48,143.44,3.4849]
[1724425306858,2.5977,143.51,143.39,40.13]
[1724425307160,0.04591308,143.46,143.44,0.0440905]
[1724425307552,42.7277,143.51,143.44,0.0440905]
[1724425307952,3.4844,143.47,143.44,0.0440905]
[1724425308150,0.05036817,143.49,143.44,0.0440905]
[1724425309548,0.05036817,143.49,143.46,3.4844]
[1724425309549,3.53416817,143.49,143.46,3.4844]
[1724425309747,0.05036817,143.49,143.44,0.0440905]
[1724425310157,3.4842,143.48,143.45,3.4847]
[1724425311354,0.05036817,143.49,143.44,33.4640905]
[1724425311560,0.05036817,143.49,143.47,33.42]
[1724425311754,0.05036817,143.49,143.48,33.42]
[1724425312156,0.05036817,143.49,143.48,36.904]
[1724425313659,1.3806,143.55,143.48,33.42]
[1724425313854,33.42,143.6,143.51,33.42]
[1724425314054,33.42,143.6,143.52,3.42773646]
[1724425314250,33.42,143.6,143.52,3.4828]
[1724425314456,33.42,143.6,143.51,33.42]
[1724425314457,36.93026959,143.6,143.51,33.42]
[1724425314753,3.4822,143.56,143.54,0.0442127]
[1724425314953,0.04890786,143.57,143.54,0.0442127]
[1724425315355,3.4823,143.55,143.54,0.0442127]
[1724425315757,1.39940786,143.57,143.54,0.0442127]
[1724425316760,3.4823,143.55,143.54,0.0442127]
[1724425317758,33.42,143.55,143.45,33.42]
[1724425317954,33.42,143.55,143.47,3.4842]
[1724425317955,2.7086,143.54,143.47,3.4842]
[1724425318357,2.7086,143.54,143.45,3.47482603]
[1724425318558,33.42,143.52,143.41,0.4637]
[1724425318760,3.4845,143.46,143.45,0.04458443]
[1724425318960,0.05362039,143.47,143.44,0.04547623]
[1724425319268,0.04866469,143.47,143.44,0.04756374]
[1724425319663,0.04866469,143.47,143.45,3.4847]
[1724425320465,0.04866469,143.47,143.44,0.04756374]
[1724425320859,0.04866469,143.47,143.44,3.53256374]
[1724425321265,0.04866469,143.47,143.44,0.04756374]
[1724425322170,0.04866469,143.47,143.44,3.53236374]
[1724425322666,3.53306469,143.47,143.44,0.04756374]
[1724425323062,0.04866469,143.47,143.44,0.04756374]
[1724425323269,2.74216469,143.47,143.44,0.04756374]
[1724425323969,0.04866469,143.47,143.44,0.04756374]
[1724425325267,0.04866469,143.47,143.46,3.4845]
[1724425326760,0.04866469,143.47,143.44,0.04756374]
[1724425326972,0.04866469,143.47,143.45,3.41313405]
[1724425327370,0.04866469,143.47,143.46,3.4845]
[1724425327773,0.04866469,143.47,143.46,36.9045]
[1724425328175,0.04866469,143.47,143.46,3.4845]
[1724425328673,0.04866469,143.47,143.45,3.4847]
[1724425328868,0.04866469,143.47,143.44,3.53488122]
[1724425329372,0.04866469,143.47,143.44,7.01968122]
[1724425330066,0.04866469,143.47,143.44,3.53488122]
[1724425330776,0.04866469,143.47,143.45,3.4845]
[1724425331172,0.04866469,143.47,143.46,3.4935865]
[1724425331378,0.04866469,143.47,143.46,36.9045]
[1724425331675,1.3934,143.53,143.46,36.86517572]
[1724425331972,1.3505,143.57,143.5,3.4835]
[1724425332180,1.3505,143.57,143.51,3.53677309]
[1724425332579,3.4826,143.54,143.52,0.04658922]
[1724425332966,0.04598917,143.55,143.52,0.04658922]
[1724425334379,3.4828,143.54,143.52,0.04658922]
[1724425334685,0.04598917,143.55,143.52,0.04658922]
[1724425335373,3.4828,143.54,143.52,0.04658922]
[1724425336466,0.04598917,143.55,143.52,0.04658922]
[1724425336777,0.04598917,143.55,143.53,3.4826]
[1724425336980,0.04598917,143.55,143.52,0.04658922]
[1724425338378,0.04598917,143.55,143.53,33.42]
[1724425338767,0.04598917,143.55,143.52,0.04658922]
[1724425338768,0.04598917,143.55,143.54,36.9026]
[1724425338975,2.7371,143.63,143.54,33.42]
[1724425339485,3.4806,143.62,143.58,3.4816]
[1724425339780,3.4806,143.62,143.57,36.9018]
[1724425339977,6.2176,143.63,143.58,3.4623722]
[1724425340182,0.05166163,143.61,143.58,0.04926841]
[1724425340474,3.4811,143.6,143.58,0.04926841]
[1724425340681,0.05166163,143.61,143.58,0.04926841]
[1724425341079,3.4813,143.6,143.58,0.04926841]
[1724425342783,0.05166163,143.61,143.58,0.04926841]
[1724425343184,3.4813,143.6,143.58,0.04926841]
[1724425343478,0.05166163,143.61,143.58,0.04926841]
[1724425344481,0.05166163,143.61,143.58,33.46926841]
[1724425344678,0.05166163,143.61,143.59,3.4814]
[1724425345481,0.05166163,143.61,143.58,33.46926841]
[1724425345875,0.05166163,143.61,143.59,3.4811]
[1724425346076,0.05166163,143.61,143.6,33.42]
[1724425346285,2.6167,143.67,143.6,33.42]
[1724425347385,3.52542991,143.65,143.62,0.04734552]
[1724425349091,3.52542991,143.65,143.62,3.52794552]
[1724425349589,3.4802,143.64,143.62,0.04734552]
[1724425349788,0.04552991,143.65,143.62,0.04734552]
[1724425350089,0.04552991,143.65,143.63,3.4802]
[1724425350788,0.04552991,143.65,143.64,3.4801]
[1724425351387,1.3524,143.71,143.67,3.4794]
[1724425351691,1.3524,143.71,143.64,33.42]
[1724425352093,1.3524,143.71,143.62,33.42]
[1724425352482,3.52333425,143.68,143.65,3.53276322]
[1724425352687,3.52333425,143.68,143.65,0.05296322]
[1724425352888,0.04403425,143.68,143.65,0.05296322]
[1724425353084,33.46403425,143.68,143.65,0.05296322]
[1724425353287,1.3557,143.67,143.59,33.42]
[1724425353592,1.3557,143.67,143.6,33.42]
[1724425354094,1.3557,143.67,143.62,3.4806]
[1724425354292,0.04819506,143.65,143.62,0.04764893]
[1724425354891,0.04819506,143.65,143.63,3.4802]
[1724425355292,3.4804,143.63,143.62,0.04764893]
[1724425355795,33.42,143.66,143.58,36.9014]
[1724425355994,1.3624,143.64,143.56,33.42]
[1724425356295,34.7824,143.64,143.54,33.42]
[1724425356495,3.4809,143.61,143.54,33.42]
[1724425356794,3.4809,143.61,143.56,33.42]
[1724425356998,0.05038777,143.59,143.56,33.46745208]
[1724425357200,0.05038777,143.59,143.56,0.04745208]
[1724425357893,0.05038777,143.59,143.57,3.4818]
[1724425358097,0.05038777,143.59,143.56,0.04745208]
[1724425358800,0.05038777,143.59,143.57,3.4541037]
[1724425358999,0.05038777,143.59,143.57,3.4818]
[1724425359804,0.05038777,143.59,143.56,36.94945208]
[1724425360001,0.05038777,143.59,143.56,33.46745208]
[1724425360197,0.05038777,143.59,143.58,33.42]
[1724425360398,0.05038777,143.59,143.58,36.86636534]
[1724425361101,1.3624,143.64,143.58,40.34796534]
[1724425361399,33.42,143.7,143.6,33.42]
[1724425361603,33.42,143.68,143.58,33.42]
[1724425361804,1.2967,143.66,143.58,36.8340002]
[1724425362102,3.4802,143.64,143.6,3.4811]
[1724425362303,0.05182559,143.63,143.61,0.04693207]
[1724425362605,0.05182559,143.63,143.61,3.52783207]
[1724425363502,0.05182559,143.63,143.61,0.04693207]
[1724425365096,3.53242559,143.63,143.61,0.04693207]
[1724425365395,0.05182559,143.63,143.61,0.04693207]
[1724425365804,3.53222559,143.63,143.61,0.04693207]
[1724425366209,0.05182559,143.63,143.61,0.04693207]
[1724425366412,3.53222559,143.63,143.61,0.04693207]
[1724425367402,0.05182559,143.63,143.62,3.4806]
[1724425367610,0.05182559,143.63,143.61,0.04693207]
[1724425369902,3.53232559,143.63,143.61,0.04693207]
[1724425370106,0.05182559,143.63,143.61,0.04693207]
[1724425372010,0.05182559,143.63,143.58,3.4815]
[1724425372207,0.05182559,143.63,143.58,3.45758077]
[1724425372412,0.05182559,143.63,143.59,26.73]
[1724425372711,0.05182559,143.63,143.52,26.73]
[1724425372712,3.53232559,143.63,143.61,26.73]
[1724425372919,3.4805,143.63,143.61,26.73]
[1724425373214,0.0532227,143.63,143.61,26.78157508]
[1724425373518,26.73,143.7,143.61,26.78157508]
[1724425373519,3.4794,143.67,143.64,3.48]
[1724425373809,2.7503,143.73,143.64,3.48]
[1724425374014,1.2742,143.72,143.62,26.73]
[1724425374212,3.4791,143.69,143.66,26.73]
[1724425374603,3.52674494,143.69,143.66,26.78080777]
[1724425375314,3.52674494,143.69,143.66,0.05080777]
[1724425375512,3.52674494,143.69,143.66,26.78080777]
[1724425375811,0.04764494,143.69,143.67,26.73]
[1724425376013,2.7503,143.73,143.68,3.45279201]
[1724425376215,2.7503,143.73,143.7,26.73]
[1724425376406,6.2283,143.73,143.7,26.73]
[1724425376911,2.7503,143.73,143.7,26.73]
[1724425377113,6.27611507,143.73,143.7,26.77391471]
[1724425377914,2.79811507,143.73,143.7,26.77391471]
[1724425378115,0.04781507,143.73,143.7,26.77391471]
[1724425378514,0.04781507,143.73,143.7,36.91241471]
[1724425378904,3.52581507,143.73,143.7,36.91241471]
[1724425379112,0.04781507,143.73,143.7,0.04391471]
[1724425380210,3.4784,143.71,143.7,0.04391471]
[1724425380515,0.04781507,143.73,143.66,36.8696]
[1724425380813,2.6327,143.76,143.66,36.8696]
[1724425381022,2.6327,143.76,143.62,33.39]
[1724425381023,33.39,143.72,143.62,33.39]
[1724425381620,0.05146526,143.68,143.66,0.04963062]
[1724425381816,0.04862645,143.68,143.66,0.04499503]
[1724425382314,0.04862645,143.68,143.6,33.39]
[1724425382714,2.6538,143.69,143.6,33.39]
[1724425383023,2.6538,143.69,143.62,3.4805]
[1724425383517,3.48,143.65,143.62,3.4805]
[1724425383712,3.48,143.65,143.64,0.04535977]
[1724425385022,0.05178339,143.67,143.64,0.04535977]
[1724425385427,3.53138339,143.67,143.64,0.04535977]
[1724425385622,0.05178339,143.67,143.64,0.04535977]
[1724425386022,3.4799,143.65,143.64,0.04535977]
[1724425387121,0.05178339,143.67,143.64,0.04535977]
[1724425387623,3.4798,143.66,143.64,0.04535977]
[1724425388723,0.05178339,143.67,143.64,0.04535977]
[1724425389118,0.05178339,143.67,143.58,33.39]
[1724425389327,33.39,143.67,143.58,33.39]
[1724425389826,2.7314,143.68,143.59,3.50232674]
[1724425390126,2.7314,143.68,143.6,33.39]
[1724425390327,2.7314,143.68,143.6,36.81961528]
[1724425390529,0.04906265,143.65,143.62,0.04748143]
[1724425390727,0.04906265,143.65,143.64,3.4801]
[1724425392230,0.04906265,143.65,143.62,0.04748143]
[1724425393232,3.4801,143.64,143.62,0.04748143]
[1724425393624,0.04906265,143.65,143.62,0.04748143]
[1724425394029,3.4804,143.63,143.62,0.04748143]
[1724425394630,0.04906265,143.65,143.56,33.39]
[1724425394832,0.04906265,143.65,143.45,232.53676313]
[1724425394833,3.4815,143.59,143.54,36.78900782]
[1724425395030,33.39,143.62,143.54,33.39]
[1724425395239,2.7472,143.61,143.56,3.4821]
[1724425395532,3.4812,143.6,143.54,36.94624368]
[1724425395732,0.04654838,143.58,143.56,0.04753549]
[1724425396229,0.04654838,143.58,143.57,36.8718]
[1724425397427,2.7058,143.7,143.57,66.78]
[1724425397626,2.7058,143.7,143.62,33.39]
[1724425397929,2.7058,143.7,143.62,36.81386769]
[1724425398136,2.7058,143.7,143.62,33.39]
[1724425398728,2.7058,143.7,143.65,0.04424704]
[1724425398729,0.0517144,143.67,143.65,0.04424704]
[1724425399238,3.5313144,143.67,143.65,0.04424704]
[1724425399833,0.0517144,143.67,143.65,0.04424704]
[1724425400432,0.0517144,143.67,143.66,3.4797]
[1724425400636,0.0517144,143.67,143.65,0.04424704]
[1724425401435,0.0517144,143.67,143.57,33.39]
[1724425401632,33.39,143.68,143.57,33.39]
[1724425401633,3.4803,143.64,143.6,3.4809]
[1724425402039,33.39,143.68,143.57,33.39]
[1724425402538,0.05267055,143.64,143.61,0.05069366]
[1724425402841,3.53297055,143.64,143.61,0.05069366]
[1724425403236,0.05267055,143.64,143.61,0.05069366]
[1724425404940,3.53287055,143.64,143.61,0.05069366]
[1724425405642,0.05267055,143.64,143.61,0.05069366]
[1724425405936,0.05267055,143.64,143.61,3.53149366]
[1724425407237,0.05267055,143.64,143.62,33.39]
[1724425407436,1.40387055,143.69,143.62,36.91100629]
[1724425407835,3.4796,143.67,143.63,3.4803]
[1724425408634,0.05208115,143.66,143.64,0.0461711]
[1724425409046,0.05208115,143.66,143.64,3.5262711]
[1724425409246,3.53178115,143.66,143.64,0.0461711]
[1724425410343,0.05208115,143.66,143.64,0.0461711]
[1724425410845,0.05208115,143.66,143.64,3.5262711]
[1724425411236,0.05208115,143.66,143.64,0.0461711]
[1724425411655,0.05208115,143.66,143.62,3.38308362]
[1724425411943,0.05208115,143.66,143.61,33.39]
[1724425412339,0.05208115,143.66,143.61,36.89973312]
[1724425412741,0.05208115,143.66,143.63,33.39]
[1724425412939,1.2777,143.72,143.65,33.39]
[1724425413141,1.2777,143.72,143.67,33.39]
[1724425413344,6.161,143.75,143.69,33.39]
[1724425413544,2.6835,143.75,143.69,33.39]
[1724425414252,0.05115795,143.73,143.71,0.04895372]
[1724425415348,0.05115795,143.73,143.72,36.8682]
[1724425415941,0.05115795,143.73,143.72,33.39]
[1724425416650,0.05115795,143.73,143.71,0.04895372]
[1724425417848,0.05115795,143.73,143.72,3.4782]
[1724425419349,0.05115795,143.73,143.72,36.8682]
[1724425422244,2.713,143.81,143.72,33.39]
[1724425422450,2.713,143.81,143.68,0.1886]
[1724425422451,2.713,143.81,143.75,33.39]
[1724425423046,2.713,143.81,143.75,36.82940183]
[1724425423251,0.0477196,143.79,143.77,0.04965995]
[1724425423558,0.0477196,143.79,143.78,3.4768]
[1724425425457,4.0286,143.87,143.81,3.4759]
[1724425425756,2.6649,143.87,143.8,33.39]
[1724425425968,3.476,143.82,143.78,33.39]
[1724425426166,1.3874,143.86,143.78,33.39]
[1724425426456,3.4757,143.83,143.78,33.39]
[1724425426661,3.52560281,143.83,143.81,0.05303357]
[1724425426958,0.04990281,143.83,143.81,0.05303357]
[1724425427159,20.92,143.98,143.81,0.05303357]
[1724425427350,20.92,143.98,143.72,33.39]
[1724425427351,37.5082,143.93,143.82,33.39]
[1724425427551,3.475,143.86,143.82,33.39]
[1724425428258,3.4747,143.87,143.83,3.4754]
[1724425428460,0.05044115,143.85,143.83,3.52759803]
[1724425428760,2.7308,143.93,143.85,3.475]
[1724425429055,34.7831,143.92,143.82,33.39]
[1724425429263,1.3931,143.92,143.82,33.39]
[1724425429564,2.7308,143.93,143.87,33.39]
[1724425429860,0.04618285,143.91,143.89,0.05155232]
[1724425432152,3.4739,143.9,143.89,0.05155232]
[1724425432357,0.04618285,143.91,143.89,0.05155232]
[1724425432657,3.4739,143.9,143.89,0.05155232]
[1724425433156,3.4739,143.9,143.85,3.475]
[1724425433157,0.04618285,143.91,143.83,33.39]
[1724425433356,1.3531,143.92,143.83,33.39]
[1724425433869,1.3531,143.92,143.85,33.39]
[1724425434071,0.04757606,143.9,143.87,0.05025419]
[1724425436159,0.04757606,143.9,143.87,33.44025419]
[1724425437161,0.04757606,143.9,143.89,33.39]
[1724425437559,0.04757606,143.9,143.88,3.4743]
[1724425437964,0.04757606,143.9,143.87,33.44025419]
[1724425438168,0.04757606,143.9,143.89,3.4741]
[1724425438360,0.04757606,143.9,143.89,36.8641]
[1724425439559,0.04757606,143.9,143.89,3.4741]
[1724425439763,0.04757606,143.9,143.88,3.4743]
[1724425439964,0.04757606,143.9,143.87,33.44025419]
[1724425440162,0.04757606,143.9,143.89,33.39]
[1724425441167,0.04757606,143.9,143.89,3.4741]
[1724425441368,0.04757606,143.9,143.87,33.44025419]
[1724425441774,0.04757606,143.9,143.89,36.8641]
[1724425443075,0.04757606,143.9,143.87,33.44025419]
[1724425443768,0.04757606,143.9,143.89,36.8641]
[1724425443975,2.631,143.96,143.89,36.8641]
[1724425443976,2.631,143.96,143.89,33.39]
[1724425444167,6.1035,143.96,143.91,3.4736]
[1724425444471,6.1035,143.96,143.89,33.39]
[1724425444472,2.631,143.96,143.89,33.39]
[1724425444672,6.1036,143.96,143.89,3.4739]
[1724425444976,0.05221155,143.94,143.91,0.0527559]
[1724425446471,0.05221155,143.94,143.93,3.4731]
[1724425447175,0.05221155,143.94,143.91,0.0527559]
[1724425447477,3.52521155,143.94,143.91,0.0527559]
[1724425447672,0.05221155,143.94,143.91,3.5263559]
[1724425447873,0.05221155,143.94,143.91,0.0527559]
[1724425448074,0.05221155,143.94,143.93,3.4731]
[1724425448584,2.7256,144.0,143.97,3.472]
[1724425448786,36.85670084,144.09,143.97,33.39]
[1724425448787,1.4079,144.03,143.97,33.39]
[1724425449078,1.4079,144.03,143.95,33.39]
[1724425449278,34.7979,144.03,143.95,6.8769058]
[1724425449483,0.04514143,144.0,143.98,0.04672459]
[1724425449779,3.4718,143.99,143.98,0.05268274]
[1724425449980,0.04465515,144.0,143.91,33.39]
[1724425450183,0.04465515,144.0,143.93,33.39]
[1724425450379,34.7979,144.03,143.93,33.39]
[1724425450574,34.7979,144.03,143.91,33.39]
[1724425450786,3.4721,143.98,143.91,33.39]
[1724425450983,34.7979,144.03,143.93,33.39]
[1724425451290,3.4716,144.0,143.96,3.4724]
[1724425451587,0.04456486,143.99,143.97,0.05102445]
[1724425452486,3.4719,143.98,143.97,0.05102445]
[1724425452784,0.04456486,143.99,143.97,0.05102445]
[1724425452979,3.4719,143.98,143.97,0.05102445]
[1724425453179,4.8342,143.98,143.97,0.05102445]
[1724425453588,1.3623,143.98,143.97,0.05102445]
[1724425454182,0.04456486,143.99,143.97,0.05102445]
[1724425454881,3.4719,143.98,143.97,0.05102445]
[1724425455385,3.51636486,143.99,143.97,0.05102445]
[1724425455587,0.04456486,143.99,143.97,0.05102445]
[1724425456692,3.51646486,143.99,143.97,0.05102445]
[1724425456991,0.04456486,143.99,143.97,0.05102445]
[1724425458685,0.04456486,143.99,143.97,30.18302445]
[1724425459388,0.04456486,143.99,143.97,0.05102445]
[1724425460080,0.04456486,143.99,143.97,3.52312445]
[1724425460381,0.04456486,143.99,143.97,0.05102445]
[1724425460982,2.777,144.03,143.97,30.14805389]
[1724425461287,2.777,144.03,143.97,26.71102445]
[1724425461491,2.777,144.03,143.97,30.22302847]
[1724425462197,0.05323549,144.01,143.99,26.66]
[1724425462998,0.05323549,144.01,143.99,30.1317]
[1724425463187,0.05323549,144.01,143.99,26.66]
[1724425465385,1.337,144.07,143.99,26.66]
[1724425465590,4.8069,144.07,144.02,30.1308]
[1724425465791,4.8069,144.07,144.02,26.66]
[1724425465990,1.337,144.07,144.02,26.66]
[1724425466187,1.337,144.07,144.01,26.66]
[1724425466691,0.04900788,144.05,144.03,0.05201879]
[1724425466989,0.04900788,144.05,144.03,26.71201879]
[1724425467290,0.04900788,144.05,144.04,26.66]
[1724425467494,6.16527254,144.14,144.04,26.66]
[1724425467795,1.3039,144.13,144.04,30.1304]
[1724425468098,3.4698,144.07,144.03,26.66]
[1724425468285,1.3039,144.13,144.06,26.66]
[1724425468488,0.04551562,144.11,144.08,0.04679436]
[1724425468683,3.4692,144.1,144.08,0.04679436]
[1724425468888,0.04551562,144.11,144.08,0.04679436]
[1724425469388,3.4693,144.09,144.08,0.04679436]
[1724425469989,3.4692,144.1,144.08,0.04679436]
[1724425470394,0.04551562,144.11,144.08,0.04679436]
[1724425470799,0.04551562,144.11,144.09,26.66]
[1724425471091,54.42,144.21,144.11,3.4686]
[1724425471291,4.1124,144.2,144.11,3.4686]
[1724425471495,4.1124,144.2,144.12,26.66]
[1724425471694,3.468,144.15,144.11,3.4686]
[1724425471895,26.66,144.19,144.1,26.66]
[1724425472087,26.66,144.19,144.11,3.41094767]
[1724425472291,0.05290368,144.16,144.13,0.04405331]